[Event "94th FRA-ch Open D 2019"]
[Site "Chartres"]
[Date "2019.08.18"]
[Round "2.3"]
[White "Minatchy, Tristan"]
[Black "Just, Fred"]
[Result "1-0"]
[ECO "B00"]
[WhiteElo "1452"]
[BlackElo "2125"]
[Annotator "NA"]
[PlyCount "87"]
[EventDate "2019.08.17"]
[EventType "swiss"]
[EventCountry "FRA"]
[SourceTitle "playchess.com"]
[Source "ChessBase"]
[SourceQuality "1"]
[TimeControl "40/5400+30:1800+30"]

1. e4 {[%emt 0:00:00]} b6 {[%emt 0:00:00]} 2. d4 {[%emt 0:00:06]} Bb7 {[%emt 0:00:00]} 3. Bd3 {[%emt 0:00:22]} e6 {[%emt 0:00:04]} 4. Nf3 {[%emt 0:01:43]} Nf6 {[%emt 0:00:44]} 5. Qe2 {[%emt 0:01:40]} d5 {[%emt 0:02:13]} 6. e5 {[%emt 0:06:09]} Ne4 {[%emt 0:06:41]} 7. Nbd2 {[%emt 0:05:43]} Nxd2 {[%emt 0:05:09]} 8. Bxd2 {[%emt 0:01:32]} c5 {[%emt 0:01:52]} 9. c3 {[%emt 0:03:49]} Be7 {[%emt 0:05:10]} 10. O-O {[%emt 0:03:58]} Qc8 {[%emt 0:01:59]} 11. Ng5 {[%emt 0:10:14]} Bxg5 {[%emt 0:12:02]} 12. Bxg5 {[%emt 0:00:15]} Ba6 {[%emt 0:00:46]} 13. Rad1 {[%emt 0:03:25]} Bxd3 {[%emt 0:00:29]} 14. Rxd3 {[%emt 0:03:05]} Qa6 {[%emt 0:07:24]} 15. a3 {[%emt 0:06:47]} Nc6 {[%emt 0:02:40]} 16. dxc5 {[%emt 0:06:18]} bxc5 {[%emt 0:11:56]} 17. f4 {[%emt 0:01:33]} Rb8 {[%emt 0:07:52]} 18. f5 {[%emt 0:04:12]} Qb6 {[%emt 0:07:23]} 19. Rf2 {[%emt 0:12:19]} Ne7 {[%emt 0:04:29]} 20. f6 {[%emt 0:03:27]} Nf5 {[%emt 0:08:56]} 21. fxg7 {[%emt 0:04:33]} Rg8 {[%emt 0:03:28]} 22. Bf6 {[%emt 0:02:03]} c4 {[%emt 0:05:42]} 23. Rh3 {[%emt 0:02:40]} h6 {[%emt 0:00:35]} 24. Qf3 {[%emt 0:06:03]} Qc5 {[%emt 0:01:24]} 25. Kf1 {[%emt 0:03:25]} Kd7 {[%emt 0:01:27]} 26. Rh5 {[%emt 0:01:44]} Qe3 {[%emt 0:01:19]} 27. Qxe3 {[%emt 0:01:33]} Nxe3+ {[%emt 0:00:01]} 28. Ke2 {[%emt 0:00:01]} Nf5 {[%emt 0:00:55]} 29. Rfxf5 {[%emt 0:00:28]} exf5 {[%emt 0:00:13]} 30. Rxh6 {[%emt 0:00:03]} Rxb2+ {[%emt 0:00:34]} 31. Kf3 {[%emt 0:00:02]} Rbb8 {[%emt 0:00:19]} 32. Rh8 {[%emt 0:00:06]} Ke6 {[%emt 0:00:36]} 33. h4 {[%emt 0:00:01]} d4 {[%emt 0:01:07]} 34. cxd4 {[%emt 0:00:30]} c3 {[%emt 0:00:25]} 35. Ke2 {[%emt 0:00:02]} Rb2+ {[%emt 0:00:11]} 36. Kd1 {[%emt 0:00:10]} Rxg2 {[%emt 0:00:07]} 37. Rxg8 {[%emt 0:00:08]} Kd5 {[%emt 0:01:19]} 38. Rd8+ {[%emt 0:00:05]} Ke4 {[%emt 0:00:01]} 39. g8=Q {[%emt 0:00:07]} Rd2+ {[%emt 0:01:12]} 40. Kc1 {[%emt 0:00:14]} Rf2 {[%emt 0:00:44]} 41. Qg1 {[%emt 0:30:28]} Ra2 {[%emt 0:30:25]} 42. Qh1+ {[%emt 0:01:15]} Kd3 {[%emt 0:00:07]} 43. Qf3+ {[%emt 0:00:00]} Kc4 {[%emt 0:00:08]} 44. Rc8+ {[%emt 0:09:42]} 1-0

[Event "94th FRA-ch Open D 2019"]
[Site "Chartres"]
[Date "2019.08.18"]
[Round "2.4"]
[White "Buchard, Jacques-Henri"]
[Black "Brasseur, Vincent"]
[Result "1/2-1/2"]
[ECO "A01"]
[WhiteElo "1449"]
[BlackElo "1548"]
[Annotator "NA"]
[PlyCount "59"]
[EventDate "2019.08.17"]
[EventType "swiss"]
[EventCountry "FRA"]
[SourceTitle "playchess.com"]
[Source "ChessBase"]
[SourceQuality "1"]
[TimeControl "40/5400+30:1800+30"]

1. b3 {[%emt 1:30:30]} d6 {[%emt 1:30:30]} 2. Bb2 {[%emt 0:00:30]} e5 {[%emt 0:00:30]} 3. c4 {[%emt 0:00:30]} Nc6 {[%emt 0:00:30]} 4. Nc3 {[%emt 0:00:30]} Nf6 {[%emt 0:00:30]} 5. d3 {[%emt 0:00:30]} Be6 {[%emt 0:00:30]} 6. Nf3 {[%emt 0:00:30]} h6 {[%emt 0:00:30]} 7. e3 {[%emt 0:00:30]} Be7 {[%emt 0:00:30]} 8. Be2 {[%emt 0:00:30]} O-O {[%emt 0:00:30]} 9. O-O {[%emt 0:00:30]} Re8 {[%emt 0:00:30]} 10. Re1 {[%emt 0:00:30]} Bf8 {[%emt 0:00:30]} 11. Kh1 {[%emt 0:00:30]} Ng4 {[%emt 0:00:30]} 12. Rf1 {[%emt 0:00:30]} f5 {[%emt 0:00:30]} 13. h3 {[%emt 0:00:30]} Nf6 {[%emt 0:00:30]} 14. Ng1 {[%emt 0:00:30]} g5 {[%emt 0:00:30]} 15. g3 {[%emt 0:00:30]} Bg7 {[%emt 0:00:30]} 16. Qd2 {[%emt 0:00:30]} g4 {[%emt 0:00:30]} 17. h4 {[%emt 0:00:30]} Nh5 {[%emt 0:00:30]} 18. Rad1 {[%emt 0:00:30]} f4 {[%emt 0:00:30]} 19. exf4 {[%emt 0:00:30]} exf4 {[%emt 0:00:30]} 20. Ne4 {[%emt 0:00:30]} f3 {[%emt 0:00:30]} 21. Bxf3 {[%emt 0:00:30]} gxf3 {[%emt 0:00:30]} 22. Bxg7 {[%emt 0:00:30]} Nxg7 {[%emt 0:00:30]} 23. Qxh6 {[%emt 0:00:30]} Rf8 {[%emt 0:00:30]} 24. Ng5 {[%emt 0:00:30]} Bf5 {[%emt 0:00:30]} 25. N5xf3 {[%emt 0:00:30]} Bg4 {[%emt 0:00:30]} 26. Ng5 {[%emt 0:00:30]} Bf5 {[%emt 0:00:30]} 27. N5f3 {[%emt 0:00:30]} Bg4 {[%emt 0:00:30]} 28. Ng5 {[%emt 0:00:30]} Bf5 {[%emt 0:00:30]} 29. N5f3 {[%emt 0:00:30]} Bg4 {[%emt 0:00:30]} 30. Ng5 {[%emt 0:00:30]} 1/2-1/2

[Event "94th FRA-ch Open D 2019"]
[Site "Chartres"]
[Date "2019.08.18"]
[Round "2.5"]
[White "Thillerot, Anthony"]
[Black "Bardet, Vincent"]
[Result "1/2-1/2"]
[ECO "E19"]
[WhiteElo "1542"]
[BlackElo "1446"]
[Annotator "NA"]
[PlyCount "87"]
[EventDate "2019.08.17"]
[EventType "swiss"]
[EventCountry "FRA"]
[SourceTitle "playchess.com"]
[Source "ChessBase"]
[SourceQuality "1"]
[TimeControl "40/5400+30:1800+30"]

1. Nf3 {[%emt 0:00:00]} Nf6 {[%emt 0:00:00]} 2. c4 {[%emt 0:00:00]} e6 {[%emt 0:00:00]} 3. g3 {[%emt 0:00:39]} b6 {[%emt 0:00:00]} 4. Bg2 {[%emt 0:00:08]} Bb7 {[%emt 0:00:00]} 5. O-O {[%emt 0:01:18]} Be7 {[%emt 0:00:00]} 6. Nc3 {[%emt 0:01:00]} O-O {[%emt 0:00:00]} 7. d4 {[%emt 0:01:56]} Ne4 {[%emt 0:00:00]} 8. Qc2 {[%emt 0:01:28]} Nxc3 {[%emt 0:00:00]} 9. bxc3 {[%emt 0:00:11]} d6 {[%emt 0:03:44]} 10. Bg5 {[%emt 0:03:12]} Nc6 {[%emt 0:00:48]} 11. Bxe7 {[%emt 0:03:33]} Qxe7 {[%emt 0:00:38]} 12. h4 {[%emt 0:08:30]} Na5 {[%emt 0:01:20]} 13. Rfe1 {[%emt 0:11:26]} Rab8 {[%emt 0:06:54]} 14. Ng5 {[%emt 0:03:59]} g6 {[%emt 0:00:38]} 15. Bxb7 {[%emt 0:05:39]} Rxb7 {[%emt 0:01:28]} 16. Qe4 {[%emt 0:01:51]} Rbb8 {[%emt 0:00:01]} 17. d5 {[%emt 0:00:56]} e5 {[%emt 0:00:22]} 18. f4 {[%emt 0:08:05]} h6 {[%emt 0:02:11]} 19. Nh3 {[%emt 0:09:11]} f5 {[%emt 0:00:27]} 20. Qd3 {[%emt 0:01:26]} e4 {[%emt 0:00:02]} 21. Qd4 {[%emt 0:00:24]} Qf6 {[%emt 0:00:01]} 22. Rac1 {[%emt 0:01:33]} Rbe8 {[%emt 0:01:25]} 23. e3 {[%emt 0:01:19]} Kh7 {[%emt 0:00:22]} 24. Kh2 {[%emt 0:01:19]} Nb7 {[%emt 0:00:30]} 25. Nf2 {[%emt 0:03:07]} a5 {[%emt 0:01:47]} 26. Rh1 {[%emt 0:03:30]} a4 {[%emt 0:00:36]} 27. Kg2 {[%emt 0:05:28]} h5 {[%emt 0:00:47]} 28. Nh3 {[%emt 0:00:13]} Ra8 {[%emt 0:00:41]} 29. Ng5+ {[%emt 0:00:12]} Kh6 {[%emt 0:00:49]} 30. Ne6 {[%emt 0:03:38]} Qxd4 {[%emt 0:01:36]} 31. cxd4 {[%emt 0:00:19]} Rfc8 {[%emt 0:01:08]} 32. c5 {[%emt 0:05:05]} dxc5 {[%emt 0:11:37]} 33. dxc5 {[%emt 0:00:37]} b5 {[%emt 0:00:07]} 34. Rb1 {[%emt 0:04:26]} Ra5 {[%emt 0:00:02]} 35. Rb4 {[%emt 0:00:41]} Nd8 {[%emt 0:00:27]} 36. Nd4 {[%emt 0:02:27]} c6 {[%emt 0:02:20]} 37. d6 {[%emt 0:02:11]} Kg7 {[%emt 0:00:20]} 38. Rd1 {[%emt 0:01:22]} Kf7 {[%emt 0:01:21]} 39. Ne2 {[%emt 0:01:51]} Ra7 {[%emt 0:08:21]} 40. Nd4 {[%emt 0:02:21]} Rd7 {[%emt 0:01:56]} 41. a3 {[%emt 0:32:02]} Ne6 {[%emt 0:31:00]} 42. Nxe6 {[%emt 0:00:33]} Kxe6 {[%emt 0:00:12]} 43. Rdd4 {[%emt 0:00:00]} Rh8 {[%emt 0:00:24]} 44. Rd2 {[%emt 0:00:13]} 1/2-1/2

[Event "94th FRA-ch Open D 2019"]
[Site "Chartres"]
[Date "2019.08.18"]
[Round "2.6"]
[White "Soulet, Julia"]
[Black "Lemaire, Frederic"]
[Result "1-0"]
[ECO "A52"]
[WhiteElo "1537"]
[BlackElo "1445"]
[Annotator "NA"]
[PlyCount "53"]
[EventDate "2019.08.17"]
[EventType "swiss"]
[EventCountry "FRA"]
[SourceTitle "playchess.com"]
[Source "ChessBase"]
[SourceQuality "1"]
[TimeControl "40/5400+30:1800+30"]

1. d4 {[%emt 0:00:00]} Nf6 {[%emt 0:00:00]} 2. c4 {[%emt 0:00:00]} e5 {[%emt 0:00:03]} 3. dxe5 {[%emt 0:00:29]} Ng4 {[%emt 0:00:23]} 4. Nf3 {[%emt 0:01:12]} Nc6 {[%emt 0:00:14]} 5. Bf4 {[%emt 0:02:34]} Bb4+ {[%emt 0:00:16]} 6. Nbd2 {[%emt 0:00:14]} O-O {[%emt 0:01:08]} 7. h3 {[%emt 0:01:23]} Nh6 {[%emt 0:03:14]} 8. e4 {[%emt 0:01:36]} Qe7 {[%emt 0:01:07]} 9. Bd3 {[%emt 0:01:23]} Qe6 {[%emt 0:01:12]} 10. O-O {[%emt 0:01:35]} d6 {[%emt 0:00:47]} 11. exd6 {[%emt 0:01:59]} cxd6 {[%emt 0:01:57]} 12. Qc2 {[%emt 0:06:56]} Ne5 {[%emt 0:01:14]} 13. Be2 {[%emt 0:14:15]} Qf6 {[%emt 0:01:43]} 14. Bg3 {[%emt 0:03:21]} Bd7 {[%emt 0:03:56]} 15. a3 {[%emt 0:02:26]} Bc5 {[%emt 0:00:51]} 16. b4 {[%emt 0:03:25]} Bb6 {[%emt 0:00:12]} 17. Qc3 {[%emt 0:00:59]} Qg6 {[%emt 0:02:25]} 18. Nxe5 {[%emt 0:04:17]} dxe5 {[%emt 0:00:54]} 19. Bxe5 {[%emt 0:01:40]} Bxh3 {[%emt 0:00:25]} 20. Qxh3 {[%emt 0:00:11]} Rad8 {[%emt 0:00:32]} 21. Bf4 {[%emt 0:06:30]} Bd4 {[%emt 0:04:15]} 22. Rad1 {[%emt 0:04:00]} a6 {[%emt 0:04:02]} 23. Bh5 {[%emt 0:06:19]} Qf6 {[%emt 0:01:26]} 24. Qg3 {[%emt 0:00:17]} Kh8 {[%emt 0:00:59]} 25. Bg5 {[%emt 0:00:55]} Qd6 {[%emt 0:00:41]} 26. Qxd6 {[%emt 0:00:45]} Rxd6 {[%emt 0:00:04]} 27. Be7 {[%emt 0:00:06]} 1-0

[Event "94th FRA-ch Open D 2019"]
[Site "Chartres"]
[Date "2019.08.19"]
[Round "3.1"]
[White "Henry, Loic"]
[Black "Soulet, Julia"]
[Result "1/2-1/2"]
[ECO "D00"]
[WhiteElo "1476"]
[BlackElo "1537"]
[Annotator "NA"]
[PlyCount "60"]
[EventDate "2019.08.17"]
[EventType "swiss"]
[EventCountry "FRA"]
[SourceTitle "playchess.com"]
[Source "ChessBase"]
[SourceQuality "1"]
[TimeControl "40/5400+30:1800+30"]

1. d4 {[%emt 0:00:00]} d5 {[%emt 0:00:00]} 2. Bf4 {[%emt 0:00:00]} Nf6 {[%emt 0:01:44]} 3. e3 {[%emt 0:00:00]} Bg4 {[%emt 0:00:49]} 4. Be2 {[%emt 0:00:51]} Bxe2 {[%emt 0:00:36]} 5. Qxe2 {[%emt 0:00:34]} a6 {[%emt 0:08:47]} 6. Nf3 {[%emt 0:01:29]} e6 {[%emt 0:00:09]} 7. Nbd2 {[%emt 0:01:47]} c5 {[%emt 0:01:13]} 8. c3 {[%emt 0:01:47]} Nc6 {[%emt 0:00:37]} 9. O-O {[%emt 0:03:09]} Be7 {[%emt 0:01:12]} 10. h3 {[%emt 0:02:49]} O-O {[%emt 0:00:32]} 11. Ne5 {[%emt 0:04:18]} Nd7 {[%emt 0:12:07]} 12. Ndf3 {[%emt 0:02:11]} Ndxe5 {[%emt 0:01:40]} 13. Nxe5 {[%emt 0:00:48]} Bd6 {[%emt 0:02:34]} 14. Nxc6 {[%emt 0:11:46]} bxc6 {[%emt 0:00:22]} 15. Bxd6 {[%emt 0:00:17]} Qxd6 {[%emt 0:00:07]} 16. b3 {[%emt 0:05:19]} cxd4 {[%emt 0:00:44]} 17. cxd4 {[%emt 0:02:13]} Rfc8 {[%emt 0:01:26]} 18. Rfc1 {[%emt 0:01:25]} c5 {[%emt 0:02:57]} 19. dxc5 {[%emt 0:03:56]} Rxc5 {[%emt 0:00:09]} 20. Rc2 {[%emt 0:02:18]} a5 {[%emt 0:11:26]} 21. Rac1 {[%emt 0:02:02]} Rac8 {[%emt 0:01:27]} 22. Qd2 {[%emt 0:04:26]} Rxc2 {[%emt 0:03:45]} 23. Rxc2 {[%emt 0:00:26]} Rxc2 {[%emt 0:01:05]} 24. Qxc2 {[%emt 0:00:33]} h6 {[%emt 0:00:17]} 25. Qc1 {[%emt 0:12:23]} e5 {[%emt 0:03:03]} 26. Qc8+ {[%emt 0:05:30]} Kh7 {[%emt 0:00:17]} 27. Qf5+ {[%emt 0:00:35]} Kg8 {[%emt 0:00:09]} 28. Qc8+ {[%emt 0:00:07]} Kh7 {[%emt 0:00:19]} 29. Qf5+ {[%emt 0:00:07]} Kg8 {[%emt 0:00:06]} 30. Qc8+ {[%emt 0:31:54]} Kh7 {[%emt 0:45:21]} 1/2-1/2

[Event "94th FRA-ch Open D 2019"]
[Site "Chartres"]
[Date "2019.08.19"]
[Round "3.2"]
[White "Braule-Debaecker, Emeline"]
[Black "Azen, Bernard"]
[Result "0-1"]
[ECO "C01"]
[WhiteElo "1470"]
[BlackElo "1532"]
[Annotator "NA RC"]
[PlyCount "34"]
[EventDate "2019.08.17"]
[EventType "swiss"]
[EventCountry "FRA"]
[SourceTitle "playchess.com"]
[Source "ChessBase"]
[SourceQuality "1"]
[TimeControl "40/5400+30:1800+30"]

1. e4 {[%emt 0:00:00]} e6 {[%emt 0:05:40]} 2. d4 {[%emt 0:00:00]} d5 {[%emt 0:00:06]} 3. exd5 {[%emt 0:00:03]} exd5 {[%emt 0:00:25]} 4. Nf3 {[%emt 0:00:42]} Bd6 {[%emt 0:01:25]} 5. Nc3 {[%emt 0:00:46]} c6 {[%emt 0:00:12]} 6. Bd3 {[%emt 0:01:35]} Ne7 {[%emt 0:00:22]} 7. O-O {[%emt 0:01:08]} O-O {[%emt 0:00:14]} 8. Re1 {[%emt 0:02:59]} Ng6 {[%emt 0:03:06]} 9. Bg5 {[%emt 0:03:47]} f6 {[%emt 0:01:01]} 10. Bd2 {[%emt 0:00:49]} Bg4 {[%emt 0:01:29]} 11. h3 {[%emt 0:03:44]} Bd7 {[%emt 0:05:09]} 12. Bxg6 {[%emt 0:03:04]} hxg6 {[%emt 0:00:08]} 13. Nh4 {[%emt 0:03:04]} Kh7 {[%emt 0:04:21]} 14. Qf3 {[%emt 0:04:22]} f5 {[%emt 0:02:21]} 15. g3 {[%emt 0:02:55]} f4 {[%emt 0:02:32]} 16. Qd3 {[%emt 0:04:50]} Qf6 {[%emt 0:02:38]} 17. Kh2 {[%emt 0:09:49]} fxg3+ {[%emt 1:07:21] Rh1} 0-1

[Event "94th FRA-ch Open D 2019"]
[Site "Chartres"]
[Date "2019.08.19"]
[Round "3.3"]
[White "Martinez, Luc"]
[Black "Lissillour, Baptiste"]
[Result "0-1"]
[ECO "B94"]
[WhiteElo "1532"]
[BlackElo "1469"]
[Annotator "NA"]
[PlyCount "46"]
[EventDate "2019.08.17"]
[EventType "swiss"]
[EventCountry "FRA"]
[SourceTitle "playchess.com"]
[Source "ChessBase"]
[SourceQuality "1"]
[TimeControl "40/5400+30:1800+30"]

1. e4 {[%emt 0:00:00]} c5 {[%emt 0:00:00]} 2. Nf3 {[%emt 0:00:00]} d6 {[%emt 0:00:00]} 3. d4 {[%emt 0:00:00]} cxd4 {[%emt 0:00:22]} 4. Nxd4 {[%emt 0:00:00]} Nf6 {[%emt 0:00:17]} 5. Nc3 {[%emt 0:00:03]} a6 {[%emt 0:00:16]} 6. Bg5 {[%emt 0:00:15]} Nbd7 {[%emt 0:00:16]} 7. f4 {[%emt 0:01:53]} Qc7 {[%emt 0:00:22]} 8. Qf3 {[%emt 0:01:13]} h6 {[%emt 0:00:28]} 9. Bh4 {[%emt 0:01:03]} g5 {[%emt 0:00:58]} 10. Bg3 {[%emt 0:06:48]} b5 {[%emt 0:07:07]} 11. a3 {[%emt 0:03:52]} Nc5 {[%emt 0:05:27]} 12. Bd3 {[%emt 0:06:32]} g4 {[%emt 0:17:35]} 13. Qe3 {[%emt 0:02:17]} e6 {[%emt 0:10:58]} 14. O-O Bb7 {[%emt 0:00:30]} 15. e5 dxe5 {[%emt 0:00:30]} 16. fxe5 Nd5 {[%emt 0:00:30]} 17. Nxd5 Bxd5 {[%emt 0:00:30]} 18. Rac1 Qa7 {[%emt 0:00:30]} 19. Qf4 Nxd3 {[%emt 0:00:30]} 20. cxd3 h5 {[%emt 0:00:30]} 21. Bf2 Bc5 {[%emt 0:00:30]} 22. Rxc5 Qxc5 {[%emt 0:00:30]} 23. Qxf7+ Kxf7 {[%emt 0:00:30]} 0-1

[Event "94th FRA-ch Open D 2019"]
[Site "Chartres"]
[Date "2019.08.19"]
[Round "3.4"]
[White "Galhaud, Victor"]
[Black "Legeay, Julie"]
[Result "0-1"]
[ECO "A38"]
[WhiteElo "1469"]
[BlackElo "1531"]
[Annotator "NA"]
[PlyCount "62"]
[EventDate "2019.08.17"]
[EventType "swiss"]
[EventCountry "FRA"]
[SourceTitle "playchess.com"]
[Source "ChessBase"]
[SourceQuality "1"]
[TimeControl "40/5400+30:1800+30"]

1. Nf3 {[%emt 1:30:30]} d6 {[%emt 1:30:30]} 2. c4 {[%emt 0:00:30]} Nf6 {[%emt 0:00:30]} 3. Nc3 {[%emt 0:00:30]} g6 {[%emt 0:00:30]} 4. b3 {[%emt 0:00:30]} Bg7 {[%emt 0:00:30]} 5. Bb2 {[%emt 0:00:30]} O-O {[%emt 0:00:30]} 6. g3 {[%emt 0:00:30]} c5 {[%emt 0:00:30]} 7. Bg2 {[%emt 0:00:30]} Nc6 {[%emt 0:00:30]} 8. O-O {[%emt 0:00:30]} Rb8 {[%emt 0:00:30]} 9. d4 {[%emt 0:00:30]} cxd4 {[%emt 0:00:30]} 10. Nxd4 {[%emt 0:00:30]} Nxd4 {[%emt 0:00:30]} 11. Qxd4 {[%emt 0:00:30]} b6 {[%emt 0:00:30]} 12. Qd2 {[%emt 0:00:30]} Bb7 {[%emt 0:00:30]} 13. e4 {[%emt 0:00:30]} Re8 {[%emt 0:00:30]} 14. Rfe1 {[%emt 0:00:30]} Qc8 {[%emt 0:00:30]} 15. Rad1 {[%emt 0:00:30]} Ng4 {[%emt 0:00:30]} 16. Qe2 {[%emt 0:00:30]} Ne5 {[%emt 0:00:30]} 17. Nd5 {[%emt 0:00:30]} Qc5 {[%emt 0:00:30]} 18. Bd4 {[%emt 0:00:30]} Qa3 {[%emt 0:00:30]} 19. Nc7 {[%emt 0:00:30]} Rec8 {[%emt 0:00:30]} 20. Nb5 {[%emt 0:00:30]} Qa5 {[%emt 0:00:30]} 21. Qb2 {[%emt 0:00:30]} Nd3 {[%emt 0:00:30]} 22. Rxd3 {[%emt 0:00:30]} Qxe1+ {[%emt 0:00:30]} 23. Bf1 {[%emt 0:00:30]} Bxd4 {[%emt 0:00:30]} 24. Nxd4 {[%emt 0:00:30]} Qxe4 {[%emt 0:00:30]} 25. f3 {[%emt 0:00:30]} Qe5 {[%emt 0:00:30]} 26. Qc3 {[%emt 0:00:30]} a6 {[%emt 0:00:30]} 27. Bh3 {[%emt 0:00:30]} Rc7 {[%emt 0:00:30]} 28. Re3 {[%emt 0:00:30]} Qf6 {[%emt 0:00:30]} 29. Bg4 {[%emt 0:00:30]} b5 {[%emt 0:00:30]} 30. h4 {[%emt 0:00:30]} bxc4 {[%emt 0:00:30]} 31. bxc4 {[%emt 0:00:30]} Bd5 {[%emt 0:00:30]} 0-1

[Event "94th FRA-ch Open D 2019"]
[Site "Chartres"]
[Date "2019.08.19"]
[Round "3.5"]
[White "Masalles, Roland"]
[Black "Minatchy, Tristan"]
[Result "0-1"]
[ECO "B07"]
[WhiteElo "1530"]
[BlackElo "1452"]
[Annotator "NA"]
[PlyCount "80"]
[EventDate "2019.08.17"]
[EventType "swiss"]
[EventCountry "FRA"]
[SourceTitle "playchess.com"]
[Source "ChessBase"]
[SourceQuality "1"]
[TimeControl "40/5400+30:1800+30"]

1. e4 {[%emt 0:03:46]} d6 {[%emt 0:00:58]} 2. Bc4 {[%emt 0:00:31]} Nf6 {[%emt 0:00:17]} 3. Nc3 {[%emt 0:00:16]} g6 {[%emt 0:00:17]} 4. d3 {[%emt 0:01:24]} Nc6 {[%emt 0:05:01]} 5. Bg5 {[%emt 0:00:20]} Na5 {[%emt 0:01:43]} 6. Bb3 {[%emt 0:01:28]} c6 {[%emt 0:05:06]} 7. Nf3 {[%emt 0:01:49]} Bg7 {[%emt 0:04:12]} 8. O-O {[%emt 0:00:25]} O-O {[%emt 0:01:22]} 9. Qd2 {[%emt 0:02:17]} Bg4 {[%emt 0:06:50]} 10. Qe3 {[%emt 0:01:43]} Qc7 {[%emt 0:10:42]} 11. h3 {[%emt 0:01:23]} Bd7 {[%emt 0:01:11]} 12. Ne2 {[%emt 0:02:26]} b5 {[%emt 0:04:07]} 13. Rfe1 {[%emt 0:04:17]} e5 {[%emt 0:02:51]} 14. c3 {[%emt 0:01:26]} Nxb3 {[%emt 0:02:01]} 15. axb3 {[%emt 0:00:10]} c5 {[%emt 0:01:57]} 16. Nh2 {[%emt 0:05:06]} b4 {[%emt 0:04:53]} 17. c4 {[%emt 0:01:03]} a5 {[%emt 0:09:19]} 18. Qf3 {[%emt 0:01:01]} Qd8 {[%emt 0:03:39]} 19. Qe3 {[%emt 0:02:29]} Ra6 {[%emt 0:01:57]} 20. Ra2 {[%emt 0:01:32]} Qc7 {[%emt 0:01:49]} 21. Qf3 {[%emt 0:00:23]} Qd8 {[%emt 0:00:21]} 22. Rea1 {[%emt 0:00:14]} h6 {[%emt 0:00:56]} 23. Bd2 {[%emt 0:05:18]} Kh7 {[%emt 0:04:57]} 24. g4 {[%emt 0:07:52]} h5 {[%emt 0:02:54]} 25. Bg5 {[%emt 0:01:53]} hxg4 {[%emt 0:01:05]} 26. Nxg4 {[%emt 0:04:24]} Bxg4 {[%emt 0:00:04]} 27. hxg4 {[%emt 0:00:09]} Re8 {[%emt 0:02:31]} 28. Qh3+ {[%emt 0:01:47]} Kg8 {[%emt 0:00:20]} 29. f4 {[%emt 0:00:21]} exf4 {[%emt 0:00:45]} 30. Nxf4 {[%emt 0:00:14]} Qc7 {[%emt 0:02:09]} 31. Kg2 {[%emt 0:06:42]} Re5 {[%emt 0:03:41]} 32. Qh4 {[%emt 0:41:51]} Nh7 {[%emt 0:16:05]} 33. Bd8 {[%emt 0:00:30]} Qd7 {[%emt 0:00:30]} 34. Nd5 {[%emt 0:00:30]} g5 {[%emt 0:00:30]} 35. Bxg5 {[%emt 0:00:30]} Rxg5 {[%emt 0:00:30]} 36. Kh3 {[%emt 0:00:30]} Qe6 {[%emt 0:00:30]} 37. Nc7 {[%emt 0:00:30]} Qe5 {[%emt 0:00:30]} 38. Nxa6 {[%emt 0:00:30]} Nf6 {[%emt 0:00:30]} 39. Rg1 {[%emt 0:00:30]} Nxg4 {[%emt 0:00:30]} 40. Rxa5 {[%emt 0:00:00]} Qh2# 0-1

[Event "94th FRA-ch Open D 2019"]
[Site "Chartres"]
[Date "2019.08.19"]
[Round "3.6"]
[White "Bustos-Salinas, Luis"]
[Black "Pertuy, Noe"]
[Result "0-1"]
[ECO "D02"]
[WhiteElo "1444"]
[BlackElo "1530"]
[Annotator "NA"]
[PlyCount "74"]
[EventDate "2019.08.17"]
[EventType "swiss"]
[EventCountry "FRA"]
[SourceTitle "playchess.com"]
[Source "ChessBase"]
[SourceQuality "1"]
[TimeControl "40/5400+30:1800+30"]

1. d4 {[%emt 0:00:00]} d5 {[%emt 0:00:00]} 2. Nf3 {[%emt 0:00:00]} Nc6 {[%emt 0:00:00]} 3. Bf4 {[%emt 0:00:22]} Bg4 {[%emt 0:00:10]} 4. e3 {[%emt 0:05:33]} e6 {[%emt 0:01:58]} 5. Nbd2 {[%emt 0:04:41]} Bd6 {[%emt 0:01:36]} 6. Bxd6 {[%emt 0:00:52]} cxd6 {[%emt 0:00:53]} 7. h3 {[%emt 0:01:28]} Bh5 {[%emt 0:04:28]} 8. g4 {[%emt 0:02:06]} Bg6 {[%emt 0:00:19]} 9. Nh4 {[%emt 0:00:54]} Qxh4 {[%emt 0:01:08]} 10. c3 {[%emt 0:02:05]} Qd8 {[%emt 0:01:31]} 11. h4 {[%emt 0:01:34]} h6 {[%emt 0:01:09]} 12. Nf3 {[%emt 0:01:18]} Nf6 {[%emt 0:00:23]} 13. h5 {[%emt 0:06:58]} Be4 {[%emt 0:11:05]} 14. Rg1 {[%emt 0:05:52]} Qb6 {[%emt 0:05:47]} 15. b4 {[%emt 0:05:34]} Rc8 {[%emt 0:08:26]} 16. Nh4 {[%emt 0:07:13]} Qc7 {[%emt 0:21:22]} 17. f3 {[%emt 0:06:42]} Bh7 {[%emt 0:01:26]} 18. a3 {[%emt 0:01:26]} a6 {[%emt 0:17:21]} 19. Ra2 {[%emt 0:00:50]} Na7 {[%emt 0:01:09]} 20. Qa4+ {[%emt 0:04:12]} b5 {[%emt 0:00:27]} 21. Qxa6 {[%emt 0:00:14]} Qxc3+ {[%emt 0:00:10]} 22. Kf2 {[%emt 0:00:04]} Rc7 {[%emt 0:19:26]} 23. Bxb5+ {[%emt 0:02:24]} Ke7 {[%emt 0:00:38]} 24. Raa1 {[%emt 0:02:24]} Rhc8 {[%emt 0:00:24]} 25. Rge1 {[%emt 0:02:28]} Nxb5 {[%emt 0:00:37]} 26. Qxb5 {[%emt 0:00:09]} Qb2+ {[%emt 0:00:23]} 27. Kg3 {[%emt 0:01:21]} Rc2 {[%emt 0:00:38]} 28. a4 {[%emt 0:01:12]} R8c7 {[%emt 0:00:32]} 29. a5 {[%emt 0:00:41]} Rh2 {[%emt 0:00:14]} 30. Rf1 {[%emt 0:00:50]} Rxh4 {[%emt 0:00:15]} 31. Rf2 {[%emt 0:00:50]} Qxa1 {[%emt 0:00:14]} 32. Kxh4 {[%emt 0:00:09]} Qh1+ {[%emt 0:01:03]} 33. Kg3 {[%emt 0:00:06]} Qg1+ {[%emt 0:00:07]} 34. Rg2 {[%emt 0:00:13]} Qe1+ {[%emt 0:00:05]} 35. Kh3 {[%emt 0:00:17]} Qxe3 {[%emt 0:00:44]} 36. Qb6 {[%emt 0:00:38]} Qxf3+ {[%emt 0:00:33]} 37. Rg3 {[%emt 0:34:50]} Qh1# {[%emt 0:00:04]} 0-1